[Event "MPL-4 Indian Chess Tour 2022"]
[Site "Chess24"]
[Date "2022.09.27"]
[Round "4.6"]
[White "Adhiban, B.."]
[Black "Sethuraman, S.P."]
[Result "1/2-1/2"]
[ECO "D45"]
[WhiteElo "2603"]
[BlackElo "2638"]
[Annotator "TA"]
[PlyCount "146"]
[EventDate "2022.09.29"]
[EventType "tourn (rapid)"]
[EventCountry "NET"]
[SourceTitle "playchess.com"]
[Source "ChessBase"]
[SourceQuality "1"]
[WhiteTeam "India"]
[BlackTeam "India"]
[WhiteTeamCountry "IND"]
[BlackTeamCountry "IND"]
[TimeControl "900+10"]

{[%evp 19,146,0,4,0,10,0,0,0,13,10,48,50,42,46,46,44,68,37,37,35,37,26,39,0,35,29,30,22,49,36,31,24,52,52,46,39,49,24,26,32,37,31,66,75,75,75,117,126,121,124,156,0,0,0,0,0,12,0,18,3,10,0,0,0,0,0,0,0,0,0,8,8,8,8,8,8,8,8,8,8,8,0,0,0,0,0,0,0,0,0,0,0,0,0,0,0,0,0,0,0,0,0,0,0,0,0,0,0,0,0,0,0,0,0,0,0,0,0,0,0,0,0,0,0,0,0,0,0,0]} 1. Nf3 {[%emt 0:00:00]} d5 {[%emt 0:00:00]} 2. e3 {[%emt 0:00:03]} Nf6 {[%emt 0:00:06]} 3. c4 {[%emt 0:00:01]} c6 {[%emt 0:00:08]} 4. Nc3 {[%emt 0:00:02]} e6 {[%emt 0:00:06]} 5. b3 {[%emt 0:00:02]} Bd6 {[%emt 0:00:13]} 6. Bb2 {[%emt 0:00:02]} O-O {[%emt 0:00:18]} 7. Be2 {[%emt 0:00:05]} b6 {[%emt 0:00:49]} 8. O-O {[%emt 0:00:28]} Bb7 {[%emt 0:00:04]} 9. d4 {[%emt 0:00:07]} Nbd7 {[%emt 0:00:01]} 10. Qc2 {[%emt 0:00:02]} Rc8 {[%emt 0:00:14]} 11. Rad1 $1 {[%emt 0:01:07] 11.Rad1 is better than 11.e4. D45: Semi-Slav: 5 e3.} c5 {[%emt 0:00:58]} 12. dxc5 {[%emt 0:01:03]} Nxc5 {[%emt 0:00:04]} 13. Qd2 {[%emt 0:00:04]} Qe7 {[%emt 0:03:15]} 14. cxd5 {[%emt 0:00:05]} Nxd5 {[%emt 0:00:12] [#]} 15. b4 $146 {[%emt 0:00:03]} ({Reject} 15. e4 Nxc3 16. Qxc3 f6 $15) ({Predecessor:} 15. Qd4 f6 16. Nxd5 Bxd5 17. Bc4 Bxc4 18. Qxc4 Rfd8 19. Nd4 Qf7 20. Ba3 Ne4 21. Nc6 Bxh2+ 22. Kxh2 Rxd1 23. Rxd1 {1-0 (37) Ostergaard,J (2229)-Zeng,C (2567) Hillerod 2020}) 15... Nd7 {[%emt 0:02:27][%cal Bc5d7,Bd7f6,Bf6e4][%mdl 32]} 16. Nxd5 {[%emt 0:00:03]} exd5 {[%emt 0:00:10]} 17. a3 {[%emt 0:00:02]} Nf6 {[%emt 0:00:35]} 18. Bd4 {[%emt 0:00:06]} Ne4 {[%emt 0:00:23]} 19. Qb2 {[%emt 0:00:03]} f6 {[%emt 0:00:01]} 20. Nd2 {[%emt 0:00:01]} Ng5 {[%emt 0:00:20]} 21. Nf3 {[%emt 0:01:17]} Ne4 {[%emt 0:00:25]} 22. Qb3 {[%emt 0:00:23]} Kh8 {[%emt 0:00:33]} 23. g3 {[%emt 0:00:25]} Rc7 {[%emt 0:00:42]} 24. Rc1 {[%emt 0:01:28]} Rfc8 {[%emt 0:00:04]} 25. Rxc7 {[%emt 0:00:01]} Rxc7 {[%emt 0:00:32]} 26. Rd1 {[%emt 0:00:03]} Qe6 {[%emt 0:01:06]} 27. Nd2 {[%emt 0:02:15]} Ng5 {[%emt 0:00:33]} 28. h4 {[%emt 0:00:07]} (28. f4 {with more complications.} Ne4 29. Nxe4 Qxe4 30. Bd3) 28... Nf7 {[%emt 0:00:15]} 29. Nf3 {[%emt 0:00:02]} Qc8 {[%emt 0:01:40]} 30. Bb2 {[%emt 0:00:19]} Ne5 {[%emt 0:00:03]} 31. Nxe5 {[%emt 0:03:06]} fxe5 {[%emt 0:00:04]} 32. Bf3 {[%emt 0:00:02]} e4 {[%emt 0:00:03]} 33. Bxe4 {[%emt 0:00:09]} Bxg3 {[%emt 0:00:09]} 34. fxg3 {[%emt 0:00:09]} dxe4 {[%emt 0:00:03] [#]} 35. Rf1 $2 {[%emt 0:01:24] White is more active.} ({White must play} 35. Rd6 $1 $16 Qf8 36. Qd1) 35... h6 $11 {[%emt 0:00:45] The position is equal.} 36. Qd1 {[%emt 0:01:20]} Kh7 $36 {[%emt 0:01:29][%mdl 2048] Black is more active.} 37. Qd6 {[%emt 0:00:17]} Rc6 {[%emt 0:02:03]} 38. Qe5 {[%emt 0:04:26][%csl Gb2][%cal Re5g7]} Rc7 {[%emt 0:00:27]} 39. Rf2 {[%emt 0:00:38][%cal Of2c2] [#] And now Rc2! would win.} Qd7 {[%emt 0:00:03]} 40. Bd4 {[%emt 0:00:06]} Kg8 {[%emt 0:00:10]} 41. Kg2 {[%emt 0:00:05]} Bc8 {[%emt 0:00:06]} 42. Kg1 {[%emt 0:00:21][%cal Bg2g1,Bg1f1,Bf1e1,Be1d2,Bd2c3][%mdl 32]} Rc1+ {[%emt 0:00:10]} 43. Rf1 {[%emt 0:00:01]} Rxf1+ {[%emt 0:00:03]} 44. Kxf1 {[%emt 0:00:00]} Qf5+ {[%emt 0:00:19]} 45. Qxf5 {[%emt 0:00:03]} Bxf5 {[%emt 0:00:01][%mdl 4096] Endgame KB-KB} 46. Ke1 {[%emt 0:00:00]} Kf7 {[%emt 0:00:07]} 47. Kd2 {[%emt 0:00:02]} g6 {[%emt 0:00:04]} 48. b5 {[%emt 0:00:04]} Ke6 {[%emt 0:00:15]} 49. Kc3 {[%emt 0:00:04]} Bg4 {[%emt 0:00:07]} 50. Bg7 {[%emt 0:00:02]} h5 {[%emt 0:00:02]} 51. Bh6 {[%emt 0:00:01]} Kd7 {[%emt 0:00:07]} 52. Bf4 {[%emt 0:00:01]} Be2 {[%emt 0:00:06]} 53. a4 {[%emt 0:00:02]} a6 {[%emt 0:00:18]} 54. bxa6 {[%emt 0:00:02]} Bxa6 {[%emt 0:00:03]} 55. Kd4 {[%emt 0:00:01]} Bd3 {[%emt 0:00:11]} 56. Ke5 {[%emt 0:00:01]} Bc2 {[%emt 0:00:13]} 57. Kf6 {[%emt 0:00:02]} Bxa4 {[%emt 0:00:07]} 58. g4 {[%emt 0:00:03]} hxg4 {[%emt 0:00:33]} 59. Kxg6 {[%emt 0:00:02] aiming for h5.} Ke6 {[%emt 0:00:12]} 60. Kg5 {[%emt 0:00:31]} Kf7 {[%emt 0:00:15]} 61. Kxg4 {[%emt 0:00:05]} Kg6 {[%emt 0:00:06]} 62. h5+ {[%emt 0:00:01]} Kh7 {[%emt 0:00:01]} 63. Kf5 {[%emt 0:00:04]} Bc2 {[%emt 0:00:02]} 64. Ke5 {[%emt 0:00:06]} b5 {[%emt 0:00:02][%cal Bb6b5,Bb5b4,Bb4b3][%mdl 32]} 65. Kd4 {[%emt 0:00:01]} b4 {[%emt 0:00:02]} 66. Kc4 {[%emt 0:00:01]} b3 {[%emt 0:00:02] ( -> ...b2)} 67. Kc3 {[%emt 0:00:01]} Kh8 {[%emt 0:00:02]} 68. Kb2 {[%emt 0:00:01]} Kh7 {[%emt 0:00:01]} 69. Kc3 {[%emt 0:00:01]} Bd1 {[%emt 0:00:01]} 70. Kb2 {[%emt 0:00:03]} Bxh5 {[%emt 0:00:03]} 71. Kxb3 {[%emt 0:00:01]} Kg6 {[%emt 0:00:01]} 72. Kc4 {[%emt 0:00:01]} Kf5 {[%emt 0:00:01]} 73. Kd4 {[%emt 0:00:03]} Bf3 {[%emt 0:00:01] Weighted Error Value: White=0.07 (flawless) /Black=0.06 (flawless)} 1/2-1/2

[Event "MPL-4 Indian Chess Tour 2022"]
[Site "Chess24"]
[Date "2022.09.27"]
[Round "4.7"]
[White "Karthikeyan, Murali"]
[Black "Aditya Mittal"]
[Result "1/2-1/2"]
[ECO "C67"]
[WhiteElo "2623"]
[BlackElo "2485"]
[Annotator "TA"]
[PlyCount "112"]
[EventDate "2022.09.29"]
[EventType "tourn (rapid)"]
[EventCountry "NET"]
[SourceTitle "playchess.com"]
[Source "ChessBase"]
[SourceQuality "1"]
[WhiteTeam "India"]
[BlackTeam "India"]
[WhiteTeamCountry "IND"]
[BlackTeamCountry "IND"]
[TimeControl "900+10"]

{[%evp 17,112,22,15,0,6,-46,-44,-43,-41,-38,-38,-43,-30,-37,-25,-39,-24,-28,0,0,0,0,5,0,78,82,87,75,66,74,85,54,48,45,50,0,0,0,0,-9,-7,-8,-8,-13,0,-8,0,0,0,0,0,0,6,0,0,-65,-66,-68,-77,-78,-78,-89,-84,-86,-90,-117,-117,-117,-117,-124,-110,-110,-110,-110,-110,-110,-110,-110,-110,-110,-90,-90,-70,-70,-8,-8,0,0,0,0,0,0,0,0,0,-8,-8]} 1. e4 {[%emt 0:00:00]} e5 {[%emt 0:00:00]} 2. Nf3 {[%emt 0:00:03]} Nc6 {[%emt 0:00:02]} 3. Bb5 {[%emt 0:00:04]} Nf6 {[%emt 0:00:02]} 4. O-O {[%emt 0:00:06]} Nxe4 {[%emt 0:00:03]} 5. d4 {[%emt 0:00:01]} Nd6 {[%emt 0:00:02]} 6. Bxc6 {[%emt 0:00:01]} dxc6 {[%emt 0:00:00]} 7. dxe5 {[%emt 0:00:01]} Nf5 {[%emt 0:00:00]} 8. Qxd8+ {[%emt 0:00:00]} Kxd8 {[%emt 0:00:00]} 9. Nc3 {[%emt 0:00:05]} Be7 {[%emt 0:00:02]} 10. Bf4 {[%emt 0:01:19] C67: Ruy Lopez: Berlin Defence: 4 0-0 Nxe4.} Be6 {[%emt 0:00:31]} 11. Ng5 {[%emt 0:02:05] [#]} ({White should play} 11. Bg5 $11) 11... Bxg5 $146 {[%emt 0:00:36]} ({Predecessor:} 11... Kc8 12. Nxe6 fxe6 13. Rad1 Rd8 14. Rxd8+ Kxd8 15. Ne4 h6 16. g4 Nh4 17. Bg3 Ke8 {1-0 (47) Vardanian,H (2177)-Karanfil,T (1653) Mersin 2008}) 12. Bxg5+ {[%emt 0:00:03] Black is slightly better.} Kc8 {[%emt 0:00:00]} 13. Rad1 {[%emt 0:01:40]} h6 {[%emt 0:00:05]} 14. Bc1 {[%emt 0:00:26]} b6 {[%emt 0:00:19]} 15. h3 {[%emt 0:00:50]} Ne7 {[%emt 0:00:24]} 16. Kh2 {[%emt 0:01:15]} Kb7 {[%emt 0:00:17]} 17. g4 {[%emt 0:00:37]} h5 {[%emt 0:00:26]} 18. Kg3 {[%emt 0:00:02]} ({Much worse is} 18. Bg5 Ng6 19. Kg3 hxg4 20. hxg4 Nxe5 $17) 18... hxg4 {[%emt 0:03:20]} 19. hxg4 {[%emt 0:00:00]} Rag8 {[%emt 0:00:01]} 20. Rh1 {[%emt 0:03:21]} f5 {[%emt 0:01:13] [#]} (20... Rxh1 $11 {keeps the balance.} 21. Rxh1 Nd5) 21. exf6 $1 $16 {[%emt 0:00:17]} Rxh1 {[%emt 0:00:10]} 22. Rxh1 {[%emt 0:00:00]} gxf6 {[%emt 0:00:01]} 23. f3 {[%emt 0:00:20]} Nf5+ {[%emt 0:03:43]} 24. Kf4 {[%emt 0:01:02]} Nd4 {[%emt 0:00:02]} 25. Rh2 {[%emt 0:00:02]} Bc8 {[%emt 0:01:20]} 26. Be3 {[%emt 0:01:02]} (26. Kg3 $14) 26... Ne6+ $11 {[%emt 0:00:16]} 27. Ke4 {[%emt 0:00:11]} Rf8 {[%emt 0:02:39]} 28. Kd3 {[%emt 0:03:48]} f5 {[%emt 0:00:07]} 29. Rg2 {[%emt 0:00:13]} Rd8+ {[%emt 0:02:26]} 30. Ke2 $1 {[%emt 0:00:02]} Rg8 {[%emt 0:00:14]} 31. Rg1 {[%emt 0:00:44]} fxg4 {[%emt 0:00:27]} 32. fxg4 {[%emt 0:00:00][%cal Bf3g4,Bg4g5][%mdl 32]} Nd8 {[%emt 0:00:06]} 33. g5 {[%emt 0:00:06]} Bf5 {[%emt 0:00:03]} 34. Kd2 {[%emt 0:00:10]} Ne6 {[%emt 0:00:13]} 35. Ne2 {[%emt 0:00:23]} c5 {[%emt 0:00:25]} 36. Rf1 {[%emt 0:00:25]} (36. b3 $11) 36... Bg4 $15 {[%emt 0:00:17]} 37. Rg1 {[%emt 0:00:12] [#]} Nxg5 $1 {[%emt 0:00:13]} 38. Bxg5 {[%emt 0:00:10]} (38. Kc1 Nf3) 38... Rxg5 {[%emt 0:00:00][%mdl 4096] Endgame KRB-KRN} 39. Nc3 {[%emt 0:00:09]} Rg8 {[%emt 0:00:07]} 40. Kc1 {[%emt 0:00:02]} Be6 {[%emt 0:00:08]} 41. Rxg8 {[%emt 0:00:00]} Bxg8 $17 {[%emt 0:00:01] KB-KN} 42. a3 {[%emt 0:00:12]} Kc6 {[%emt 0:00:01]} 43. Nd1 {[%emt 0:00:14]} Bh7 {[%emt 0:00:07]} 44. Kd2 {[%emt 0:00:07]} a5 {[%emt 0:00:25]} 45. c4 {[%emt 0:00:24]} Kd6 {[%emt 0:00:22]} 46. Kc3 {[%emt 0:00:07]} Be4 {[%emt 0:00:15]} 47. b3 {[%emt 0:00:09]} Ke5 {[%emt 0:00:04]} 48. Nb2 {[%emt 0:00:07]} Kf4 {[%emt 0:00:03]} 49. b4 {[%emt 0:00:07]} cxb4+ {[%emt 0:00:38]} 50. axb4 {[%emt 0:00:00]} Ke5 {[%emt 0:00:16]} (50... axb4+ $15 51. Kxb4 Bc6) 51. c5 $11 {[%emt 0:00:14] The position is equal.} axb4+ {[%emt 0:00:24]} 52. Kxb4 {[%emt 0:00:00]} bxc5+ {[%emt 0:00:00]} 53. Kxc5 {[%emt 0:00:01]} c6 {[%emt 0:00:01]} 54. Nc4+ {[%emt 0:00:01]} Ke6 {[%emt 0:00:01]} 55. Na5 {[%emt 0:00:01]} Kd7 {[%emt 0:00:02]} 56. Nxc6 {[%emt 0:00:01]} Bxc6 {[%emt 0:00:01] Weighted Error Value: White=0.09 (flawless) /Black=0.09 (flawless)} 1/2-1/2

[Event "MPL-4 Indian Chess Tour 2022"]
[Site "Chess24"]
[Date "2022.09.27"]
[Round "4.8"]
[White "Pranav, V."]
[Black "Puranik, Abhimanyu"]
[Result "1-0"]
[ECO "C54"]
[WhiteElo "2530"]
[BlackElo "2603"]
[Annotator "TA"]
[PlyCount "59"]
[EventDate "2022.09.29"]
[EventType "tourn (rapid)"]
[EventCountry "NET"]
[SourceTitle "playchess.com"]
[Source "ChessBase"]
[SourceQuality "1"]
[WhiteTeam "India"]
[BlackTeam "India"]
[WhiteTeamCountry "IND"]
[BlackTeamCountry "IND"]
[TimeControl "900+10"]

{[%evp 13,59,22,19,8,17,15,13,0,33,21,27,28,22,27,16,14,11,17,15,5,51,47,46,60,58,11,93,72,75,58,75,-95,0,-32,8,0,8,28,175,155,181,165,268,264,482,454,712,712]} 1. e4 {[%emt 0:00:00]} e5 {[%emt 0:00:00]} 2. Nf3 {[%emt 0:00:02]} Nc6 {[%emt 0:00:01]} 3. Bc4 {[%emt 0:00:02]} Bc5 {[%emt 0:00:02]} 4. c3 {[%emt 0:00:04]} Nf6 {[%emt 0:00:01]} 5. d3 {[%emt 0:00:00]} d6 {[%emt 0:00:02]} 6. O-O {[%emt 0:00:04]} a6 {[%emt 0:00:03]} 7. a4 {[%emt 0:00:12]} h6 {[%emt 0:00:09]} 8. b4 {[%emt 0:00:40] C54: Giuoco Piano: 4 c3 Nf6, main lines with 5 d4 and 5 d3.} Ba7 {[%emt 0:00:02]} 9. Re1 {[%emt 0:00:03]} O-O {[%emt 0:00:03]} 10. h3 {[%emt 0:00:13] The position is equal.} Re8 {[%emt 0:00:04]} 11. Nbd2 {[%emt 0:00:05]} Be6 {[%emt 0:00:02]} 12. Bxe6 {[%emt 0:00:03]} Rxe6 {[%emt 0:00:01]} 13. Qc2 {[%emt 0:00:02]} Qd7 {[%emt 0:01:42]} 14. Rb1 {[%emt 0:00:19]} b5 {[%emt 0:01:17]} 15. Ra1 {[%emt 0:00:05]} Rd8 {[%emt 0:00:15]} 16. Nb3 {[%emt 0:01:16] [#]} Nh5 $146 {[%emt 0:00:52]} (16... Ree8 $11) ({Predecessor:} 16... Bb6 17. Bd2 d5 18. a5 Ba7 19. Rac1 dxe4 20. dxe4 Rd6 21. Be3 Bxe3 22. Rxe3 Rd1+ {1-0 (54) Nepomniachtchi,I (2773)-Bok,B (2624) Chess.com INT 2022}) 17. axb5 $14 {[%emt 0:01:22]} axb5 {[%emt 0:00:02]} 18. d4 {[%emt 0:00:04]} exd4 {[%emt 0:00:52]} 19. cxd4 {[%emt 0:01:20]} (19. Nfxd4 $14 Bxd4 20. Nxd4) 19... Rg6 {[%emt 0:02:05]} (19... Nxb4 $11 20. Qd2 c5) 20. Kh2 {[%emt 0:00:24]} Nxb4 {[%emt 0:00:25]} 21. Qd1 {[%emt 0:01:00]} c5 $1 {[%emt 0:00:33] [#] Strongly threatening ...c4.} 22. dxc5 {[%emt 0:01:08]} (22. Nh4 $16) 22... Bb8 {[%emt 0:02:57]} (22... dxc5 $17 23. Qxd7 Rxd7) 23. c6 {[%emt 0:02:28]} d5+ {[%emt 0:01:30]} (23... Qxc6 24. g3 (24. Ne5 $2 d5 $19) 24... Qc2 25. Bd2 $11) (23... Nxc6 $5 {[%cal Rd6d5]} 24. Nh4 d5+ 25. e5 Nxe5 $11) 24. Kh1 {[%emt 0:02:57]} Nxc6 {[%emt 0:02:20] And now ...Ba7 would win.} 25. e5 $1 {[%emt 0:00:55][%cal Be4e5,Be5e6][%mdl 32]} Qc7 {[%emt 0:01:41] Loses the game.} (25... Ba7 $11 {and Black stays safe.} 26. Rf1 Bb8) 26. g4 $18 {[%emt 0:00:56][%mdl 1024] White has strong compensation.} (26. Nh4 Nxe5 27. f4 (27. Qxh5 Nd3 $17) (27. g3 $2 Nxg3+ 28. fxg3 Rxg3 $19) 27... Ng3+ 28. Kg1 Ne4 29. Nxg6 Nxg6 $17) 26... Qc8 {[%emt 0:00:01][%cal Og6e6]} 27. Bd2 {[%emt 0:01:09]} Re6 {[%emt 0:00:32] [#]} (27... Ba7 $142) 28. Rc1 $1 {[%emt 0:00:31]} ({Weaker is} 28. gxh5 Rxe5 29. Ng1 Rf5 $16) 28... Ba7 {[%emt 0:00:01] Inhibits Nbd4.} (28... Nf6 {was called for.}) 29. Nbd4 {[%emt 0:00:30]} ({Less strong is} 29. gxh5 Rxe5 30. Ng1 (30. Nxe5 Qxh3+ 31. Kg1 Qg3+ 32. Kh1 Qh3+ 33. Kg1 Qg3+ 34. Kh1 Qh3+ $11) 30... Qd7 $14) 29... Rg6 {[%emt 0:00:58]} (29... Nf6 $142 30. Nxe6 Nxg4 31. hxg4 Qxe6) 30. e6 {[%emt 0:00:34] Weighted Error Value: White=0.13 (very precise) /Black=0.43} 1-0

[Event "MPL-4 Indian Chess Tour 2022"]
[Site "Chess24"]
[Date "2022.09.27"]
[Round "5.1"]
[White "Puranik, Abhimanyu"]
[Black "Raja Harshit"]
[Result "0-1"]
[ECO "B90"]
[WhiteElo "2603"]
[BlackElo "2459"]
[Annotator "TA"]
[PlyCount "50"]
[EventDate "2022.09.29"]
[EventType "tourn (rapid)"]
[EventCountry "NET"]
[SourceTitle "playchess.com"]
[Source "ChessBase"]
[SourceQuality "1"]
[WhiteTeam "India"]
[BlackTeam "India"]
[WhiteTeamCountry "IND"]
[BlackTeamCountry "IND"]
[TimeControl "900+10"]

{[%evp 11,50,0,15,13,44,22,37,37,47,24,27,30,51,39,72,72,77,30,80,47,41,39,35,29,41,36,62,15,15,0,-1,-92,-74,-71,-77,-70,-55,-67,-42,-698,-504]} 1. e4 {[%emt 0:00:00]} c5 {[%emt 0:00:00]} 2. Nf3 {[%emt 0:00:02]} d6 {[%emt 0:00:01]} 3. d4 {[%emt 0:00:00]} cxd4 {[%emt 0:00:01]} 4. Nxd4 {[%emt 0:00:01]} Nf6 {[%emt 0:00:00]} 5. Nc3 {[%emt 0:00:01]} a6 {[%emt 0:00:02]} 6. h3 {[%emt 0:00:00]} g6 {[%emt 0:00:01]} 7. Be3 {[%emt 0:00:02] B90: Sicilian Najdorf: Unusual White 6th moves, 6 Be3 Ng4 and 6 Be3 e5.} Nc6 {[%emt 0:00:20]} 8. g4 {[%emt 0:00:32]} Bg7 {[%emt 0:00:26]} 9. Qd2 {[%emt 0:00:03] White is slightly better.} O-O {[%emt 0:02:02]} 10. Bg2 {[%emt 0:01:00]} Nd7 {[%emt 0:00:41]} 11. O-O-O {[%emt 0:01:30]} Nb6 {[%emt 0:00:08]} 12. Bf1 {[%emt 0:01:28] [#] Prevents Nc4.} Be6 $146 {[%emt 0:01:05]} ({Predecessor:} 12... Bd7 13. Nxc6 bxc6 14. Bh6 Bh8 15. Bxf8 Qxf8 16. f4 Rb8 17. Qe3 g5 18. f5 Bf6 {1-0 (48) Praggnanandhaa,R (2661)-Hakobyan,A (2612) Dubai 2022}) 13. f4 {[%emt 0:00:33]} Rc8 {[%emt 0:01:24]} 14. Kb1 {[%emt 0:00:19]} (14. Nxe6 $16 fxe6 15. Qf2) 14... Qc7 {[%emt 0:01:28]} (14... Na5 $11) 15. Nxc6 {[%emt 0:01:04]} Qxc6 {[%emt 0:00:52]} 16. Bd4 {[%emt 0:00:02]} Bxd4 {[%emt 0:00:56]} 17. Qxd4 {[%emt 0:00:02]} Qc5 {[%emt 0:00:03]} 18. f5 {[%emt 0:00:19]} Bd7 {[%emt 0:00:41]} 19. Be2 {[%emt 0:03:27]} (19. Qd2 $1 $14 {was preferrable.}) 19... Bc6 $11 {[%emt 0:00:54]} 20. f6 {[%emt 0:00:50]} exf6 {[%emt 0:00:47]} 21. Qxf6 {[%emt 0:00:30] [#]} (21. Rhf1 $11) 21... Bxe4 $1 {[%emt 0:00:47]} 22. Nxe4 {[%emt 0:01:50]} Qxc2+ {[%emt 0:00:02]} 23. Ka1 {[%emt 0:00:01]} Qxe4 {[%emt 0:00:09]} ({Much less strong is} 23... Qxe2 24. Qd4 Nd7 25. Nxd6 $14) 24. Bf3 {[%emt 0:00:02]} Qe5 {[%emt 0:01:42]} 25. Qxd6 {[%emt 0:01:21][%mdl 8192] [#]} (25. Qxe5 $15 dxe5 26. Bxb7) 25... Rc1+ $3 {[%emt 0:00:28][%mdl 512] Weighted Error Value: White=0.54/Black=0.15 (very precise)} 0-1

[Event "MPL-4 Indian Chess Tour 2022"]
[Site "Chess24"]
[Date "2022.09.27"]
[Round "5.2"]
[White "Aditya Mittal"]
[Black "Pranav, V."]
[Result "1-0"]
[ECO "D24"]
[WhiteElo "2485"]
[BlackElo "2530"]
[Annotator "TA"]
[PlyCount "63"]
[EventDate "2022.09.29"]
[EventType "tourn (rapid)"]
[EventCountry "NET"]
[SourceTitle "playchess.com"]
[Source "ChessBase"]
[SourceQuality "1"]
[WhiteTeam "India"]
[BlackTeam "India"]
[WhiteTeamCountry "IND"]
[BlackTeamCountry "IND"]
[TimeControl "900+10"]

{[%evp 9,63,16,43,40,39,44,56,23,25,8,0,0,0,0,0,-16,-29,-22,-14,-20,0,-29,57,43,480,505,497,447,426,477,1645,1163,1051,793,768,772,29985,29986,29986,29987,29981,5585,29945,12851,29937,9933,29950,29950,6483,6329,5343,1945,29981,29982,29980,1084]} 1. d4 {[%emt 0:00:00] Edouard,Romain} d5 {[%emt 0:00:00]} 2. c4 {[%emt 0:00:02]} e6 {[%emt 0:00:01]} 3. Nf3 {[%emt 0:00:01]} Nf6 {[%emt 0:00:01]} 4. Nc3 {[%emt 0:00:00]} dxc4 {[%emt 0:00:00]} 5. e4 {[%emt 0:00:04]} b5 {[%emt 0:00:01]} 6. e5 {[%emt 0:00:01] D24: Queen's Gambit Accepted: 3 Nf3 Nf6 4 Nc3.} Nd5 {[%emt 0:00:01]} 7. Nxb5 {[%emt 0:00:01]} Nb6 {[%emt 0:00:00]} 8. a4 {[%emt 0:00:15] White is slightly better.} Qd7 {[%emt 0:00:12]} 9. Be2 {[%emt 0:01:49]} Nc6 {[%emt 0:01:33] [#]} 10. Be3 $146 {[%emt 0:01:42]} ({Predecessor:} 10. O-O Na5 11. Ng5 h6 12. Ne4 Bb7 13. Nc5 Bxc5 14. dxc5 Nd5 15. Ra3 a6 16. Nd4 {0-1 (45) Carlsen,M (2863)-Nakamura,H (2736) chess24.com INT 2020 CBM 198 [Edouard,Romain]}) 10... Bb7 {[%emt 0:01:20]} 11. O-O {[%emt 0:00:09]} Na5 {[%emt 0:01:01]} 12. Nd2 {[%emt 0:00:59]} Bb4 {[%emt 0:01:01]} 13. Nc3 {[%emt 0:01:27]} O-O {[%emt 0:02:57]} 14. Qc2 {[%emt 0:00:08]} Nd5 {[%emt 0:01:17][%cal Oc7c5]} 15. Nde4 {[%emt 0:02:07]} ({Don't go for} 15. Nxc4 $2 Nxc4 16. Bxc4 Nxc3 $19) 15... Nxe3 {[%emt 0:00:21]} ({Black should try} 15... Be7 $11) 16. fxe3 $14 {[%emt 0:00:02]} Qe7 $2 {[%emt 0:00:01][%mdl 8192] [#] This costs Black the game.} (16... Be7 $14) 17. Nf6+ $1 $18 {[%emt 0:03:05][%mdl 512]} gxf6 {[%emt 0:01:15]} 18. exf6 {[%emt 0:00:02]} Qd6 {[%emt 0:03:16] White must now prevent ...Kh8.} 19. Rf4 {[%emt 0:00:07]} Rfc8 {[%emt 0:00:06]} (19... Qxf4 $142 20. exf4 c5 21. Bxc4 Nxc4) 20. Rg4+ {[%emt 0:01:55][%mdl 64] Deflection} Kf8 {[%emt 0:00:02]} 21. Qxh7 {[%emt 0:00:27][%csl Gh7][%cal Rg4g8]} Ke8 {[%emt 0:00:02]} 22. Nb5 {[%emt 0:00:17]} Qa6 {[%emt 0:02:00]} 23. Rg8+ {[%emt 0:01:33][%mdl 64] [#] Deflection} Kd7 {[%emt 0:00:02]} 24. Qxf7+ {[%emt 0:00:02]} Kc6 {[%emt 0:00:01]} 25. Rxc8 {[%emt 0:00:21]} (25. Qxe6+ $142 Bd6 26. Bf3+ Kb6 27. Nxd6 Bxf3 28. Nxc8+ Kb7 29. Qxa6+ Kxa6 30. f7) 25... Rxc8 {[%emt 0:00:16]} 26. Qxe6+ {[%emt 0:00:08]} Bd6 {[%emt 0:00:01]} 27. Bf3+ {[%emt 0:00:18]} Kb6 {[%emt 0:00:01]} 28. Nxd6 {[%emt 0:00:06]} cxd6 {[%emt 0:00:33]} 29. Qxd6+ {[%emt 0:00:05]} Bc6 {[%emt 0:00:24]} 30. f7 {[%emt 0:00:08]} (30. Bg4 $142 Rh8 31. f7) 30... c3 {[%emt 0:00:29]} 31. f8=Q {[%emt 0:01:12]} Rxf8 {[%emt 0:00:27]} 32. Qxf8 {[%emt 0:00:01] Weighted Error Value: White=0.10 (very precise) /Black=0.87} (32. b4 $142 Kb7 33. bxa5 c2 34. Qe7+ Ka8 35. Qxf8+ Kb7 36. Qe7+ Kb8 37. Qd8+ Qc8 38. Qxc8+ Kxc8 39. Bxc6) 1-0